Cogmind - Beta 12 @@@ ROGUE MODE // 2023.03.24 @ 05:41:58 // Winter2019/RPGLIKE Player: ArabianSandBoa Result: Destroyed by B-75 Beast with Heavy Machine Gun Performance ------------- Evolutions (2) 1000 Regions Visited (12) 2400 Robots Destroyed (340) 1700 Value Destroyed (15026) 15026 Prototype IDs (26) 520 Alien Tech Used (0) 0 Bonus (6282) 6282 TOTAL SCORE: 26928 Bonus ------- High Alert Combat Kills 5946 Follower Combat Kills 42 Entered Garrisons 600 Aligned with FarCom 300 Friendly Fire -606 Cogmind --------- Core Integrity 0/600 Matter 64/300 Energy 200/200 System Corruption 3% Temperature Cool (12) Movement Flying (28) Location -8/Garrison Parts ------- > --- POWER (1) -------- Cold Fusion Reactor > --- PROPULSION (4) --- Improved Flight Unit Improved Flight Unit Improved VTOL Module Improved VTOL Module > --- UTILITY (9) ------ Modified TNC Experimental Core Analyzer Improved Armor Integrity Analyzer Hacking Suite Hacking Suite System Shield System Shield System Shield > --- WEAPON (2) ------- 8R-AWN's Boregun 8R-AWN's Boregun > --- INVENTORY (4) ---- Advanced Weapon Cycler Improved Thermal Shield Sensor Drone Bay (20/20) AS-neutralizer No. 17b Peak State ------------ > --- POWER ------------ Light Angular Momentum Engine > --- PROPULSION ------- Improved Flight Unit Improved Flight Unit Improved Flight Unit Improved Flight Unit > --- UTILITY ---------- Experimental Heat Sink Improved Terrain Scanner Experimental Targeting Computer Experimental Core Analyzer Advanced Weapon Cycler 8R-AWN's Armor/EX > --- WEAPON ----------- 8R-AWN's Boregun 8R-AWN's Boregun > --- INVENTORY -------- Gravity Neutralizer Sensor Drone Bay AS-neutralizer No. 17b [Rating: 102] Favorites ----------- Power Cold Fusion Reactor Engine Light Angular Momentum Engine Reactor Cold Fusion Reactor Propulsion Improved Flight Unit Leg Carbon-fiber Leg Wheel Compact Wheel Flight Unit Improved Flight Unit Utility System Shield Device Improved Terrain Scanner Processor Salvage Targeting Computer Hackware System Shield Protection 8R-AWN's Armor/EX Weapon 8R-AWN's Boregun Energy Gun Small Laser Ballistic Gun 8R-AWN's Boregun Launcher Mini Grenade Launcher Slashing Weapon Katana Special Melee Weapon Datajack Build | -11 -10 -10 -9 -9 -9 -8 -8 -8 -8 -8 -8 -8 ------- Run | Jun Mat Min Mat Min Exi Min Mat Gar Mat Gar Mat Gar Slots Evolved 12 | 3 3 1 4 . . . . . . 1 . . Power . | . . . . . . . . . . . . . Propulsion 3 | . 1 . 2 . . . . . . . . . Utility 8 | 3 2 . 2 . . . . . . 1 . . Weapon 1 | . . 1 . . . . . . . . . . Parts Attached 94 | 1 11 10 25 1 26 3 8 4 3 . 1 1 Power 6 | . 1 1 . . 2 2 . . . . . . Engine 3 | . 1 1 . . 1 . . . . . . . Core . | . . . . . . . . . . . . . Reactor 3 | . . . . . 1 2 . . . . . . Propulsion 18 | 1 1 2 10 . . . . . 3 . . 1 Treads . | . . . . . . . . . . . . . Leg 1 | . . 1 . . . . . . . . . . Wheel 1 | 1 . . . . . . . . . . . . Hover . | . . . . . . . . . . . . . Flight 16 | . 1 1 10 . . . . . 3 . . 1 Utility 53 | . 8 4 9 1 20 1 5 4 . . 1 . Device 26 | . 3 3 6 . 11 . . 3 . . . . Storage . | . . . . . . . . . . . . . Processor 15 | . 5 1 2 1 4 1 1 . . . . . Hackware 11 | . . . 1 . 4 . 4 1 . . 1 . Protection 1 | . . . . . 1 . . . . . . . Artifact . | . . . . . . . . . . . . . Weapon 17 | . 1 3 6 . 4 . 3 . . . . . Energy Gun 1 | . . . . . . . 1 . . . . . Energy Cannon . | . . . . . . . . . . . . . Ballistic Gun 6 | . . . . . 4 . 2 . . . . . Ballistic Cannon . | . . . . . . . . . . . . . Launcher 6 | . 1 1 4 . . . . . . . . . Special Weapon . | . . . . . . . . . . . . . Impact Weapon . | . . . . . . . . . . . . . Slashing Weapon 3 | . . 1 2 . . . . . . . . . Piercing Weapon . | . . . . . . . . . . . . . Special Melee Weapon 1 | . . 1 . . . . . . . . . . Unidentified Prototypes 13 | . . . 1 . 10 . 1 . 1 . . . Parts Lost 3 | . . . 3 . . . . . . . . . Power . | . . . . . . . . . . . . . Propulsion 1 | . . . 1 . . . . . . . . . Utility 1 | . . . 1 . . . . . . . . . Weapon 1 | . . . 1 . . . . . . . . . Highest Loss Streak 2 | . . . 2 . . . . . . . . . To Critical Strikes . | . . . . . . . . . . . . . Average Slot Usage (%) 93 | . 60 92 96 100 94 100 100 99 99 100 98 99 Engine 2 | . 2 5 6 6 3 . . . . . . . Reactor 2 | . . . . . 1 6 6 6 6 6 6 6 Flight 23 | . 8 14 25 26 26 26 26 26 25 26 25 24 Device 8 | . 6 24 19 13 13 . . . . . . . Processor 23 | . 26 29 25 33 21 26 22 20 20 20 18 18 Hackware 16 | . . . 3 6 10 25 30 32 33 33 35 36 Ballistic Gun 6 | . . . . . 10 13 13 13 13 13 12 12 Launcher 3 | . 11 6 6 6 1 . . . . . . . Slashing Weapon 2 | . . 7 6 6 1 . . . . . . . Naked Turns . | . . . . . . . . . . . . . Heaviest Build 48 | 6 6 17 19 14 48 26 24 25 24 24 24 24 Greatest Support 37 | 16 16 20 25 25 37 30 30 30 30 30 30 30 Greatest Overweight (x) 1 | . . 1 1 . 1 1 . . . . . . Average Overweight (x) . | . . . . . . . . . . . . . Largest Inventory Capacity 4 | . 1 2 3 3 3 3 4 4 4 4 4 4 Average Capacity 3 | . 1 1 2 3 3 3 3 4 4 4 4 4 Most Carried 4 | . 1 2 3 3 3 3 4 4 4 4 4 4 Average Carried 2 | . . 1 2 3 2 3 3 3 4 4 4 4 Final Capacity 4 | 1 1 2 3 3 3 3 4 4 4 4 4 4 Final Carried 4 | . 1 2 3 3 3 3 4 4 4 4 4 4 Class Distribution -------------------- 38% | Wizard-Sprinter 13% | Mutant 11% | Scout 10% | Hacker-Sprinter 9% | Hacker-Scout 5% | Scavenger-Mutant 5% | Assassin 4% | Scavenger-Sprinter Dominant Class ---------------- Mutant | -10/Materials Assassin | -10/Mines Scout | -9/Materials Hacker-Sprinter | -9/Mines Scavenger-Mutant | -9/Exiles Scavenger-Sprinter | -8/Mines Wizard-Sprinter | -8/Materials Wizard-Sprinter | -8/Garrison Wizard-Sprinter | -8/Materials Wizard-Sprinter | -8/Garrison Wizard-Sprinter | -8/Materials Wizard-Sprinter | -8/Garrison Resources | -11 -10 -10 -9 -9 -9 -8 -8 -8 -8 -8 -8 -8 ----------- Run | Jun Mat Min Mat Min Exi Min Mat Gar Mat Gar Mat Gar Matter Collected 10387 | 200 910 250 887 145 944 207 1494 2152 749 1081 183 1185 Remotely 528 | . 370 150 8 . . . . . . . . . Salvage Created 11936 | . 516 133 1855 153 347 445 2298 2778 970 853 250 1338 Parts 850 | . 58 15 152 16 80 17 160 112 54 83 11 92 Haulers Intercepted 19 | . 2 . 6 . . . 6 . 4 . 1 . Recyclers Shooed 7 | . 3 . 1 . . 1 . . 1 . 1 . Parts Field Recycled . | . . . . . . . . . . . . . Retrieved Matter . | . . . . . . . . . . . . . Parts Self-Destructed . | . . . . . . . . . . . . . Prevented . | . . . . . . . . . . . . . Kills | -11 -10 -10 -9 -9 -9 -8 -8 -8 -8 -8 -8 -8 ------- Run | Jun Mat Min Mat Min Exi Min Mat Gar Mat Gar Mat Gar Combat Hostiles Destroyed 260 | . 26 5 51 12 1 7 38 42 13 27 4 34 Melee 28 | . . 1 27 . . . . . . . . . Guns 165 | . . . . . 1 7 37 42 13 27 4 34 AOE 67 | . 26 4 24 12 . . 1 . . . . . Classes Destroyed 22 | . 7 1 3 2 2 . 3 2 1 1 . . Worker 14 | . 6 1 3 . . . 2 . 1 . 1 . Builder 11 | . 2 . 7 . . 1 . . . . 1 . Tunneler 1 | . . . . 1 . . . . . . . . Hauler 19 | . 2 . 6 . . . 6 . 4 . 1 . Recycler 5 | . 2 . . 1 . . 1 . 1 . . . Mechanic 2 | . . . 1 . . . . . . . 1 . Operator 7 | . 2 . 2 . . . 2 . 1 . . . Turret 1 | . . . . . 1 . . . . . . . Watcher 18 | . 3 . 4 . . . 5 2 4 . . . Swarmer 46 | . . 1 10 4 . 2 11 10 . 4 . 4 Cutter 2 | . . . . . . . . . 2 . . . Grunt 143 | . 26 4 29 6 . 4 17 19 8 12 2 16 Brawler 9 | . . . 2 1 . . . 3 . . 1 2 Duelist 6 | . . . . 1 . . 1 2 . 1 . 1 Protector 1 | . . . . . . . 1 . . . . . Sentry 32 | . . . 10 . . . 6 4 3 3 . 6 Specialist 4 | . . . . . . . . . . 4 . . Hunter 3 | . . . . . . . 1 . . . 1 1 Programmer 12 | . . . . . . . . 5 . 3 . 4 Heavy 1 | . . . . . . . 1 . . . . . Behemoth 1 | . . . . . . . . 1 . . . . Zionite 8 | . . . . . 8 . . . . . . . Thug 1 | . . 1 . . . . . . . . . . Best Kill Streak 13 | . 6 5 12 6 6 6 13 9 7 7 5 12 Combat Bots Only 12 | . 3 4 12 5 1 5 10 9 4 7 2 12 Max Kills in Single Turn 5 | . 5 2 3 3 1 2 2 2 3 2 2 2 Gunslinging 1 | . . . . . . . 1 1 . 1 . 1 Exploded 3 | . 3 2 3 3 . . 1 . . . . . Melee 1 | . . 1 1 . . . . . . . . . Uniques/NPCs Destroyed 5 | . . . . . 4 1 . . . . . . 8R-AWN (-9/Exiles) EX-HEX (-9/Exiles) EX-BIN (-9/Exiles) EX-DEC (-9/Exiles) AD-0RF (-8/Mines) Combat | -11 -10 -10 -9 -9 -9 -8 -8 -8 -8 -8 -8 -8 -------- Run | Jun Mat Min Mat Min Exi Min Mat Gar Mat Gar Mat Gar Damage Taken 6200 | . 289 127 1516 84 619 147 413 1020 322 372 126 1165 Core 5178 | . 252 111 1252 72 504 122 340 867 259 311 98 990 Absorbed by Shields 37 | . . . . . . . . 33 . 4 . . Redirected to Core 3441 | . 110 50 869 39 400 80 230 525 215 210 98 615 Core Remaining (%) 84 | 100 . 97 . . . 57 . . . . . . Volleys Fired 828 | . 80 14 67 18 62 13 123 174 67 85 19 106 Largest 2 | . 1 1 1 1 2 2 2 2 2 2 2 2 Hottest 60 | . 30 30 33 30 60 60 60 60 60 60 60 60 Shots Fired 1473 | . 80 14 67 18 123 26 246 348 134 170 37 210 Gun 1293 | . . . . . 122 26 246 348 134 170 37 210 Cannon . | . . . . . . . . . . . . . Launcher 180 | . 80 14 67 18 1 . . . . . . . Special . | . . . . . . . . . . . . . Kinetic 1293 | . . . . . 122 26 246 348 134 170 37 210 Thermal . | . . . . . . . . . . . . . Explosive 180 | . 80 14 67 18 1 . . . . . . . Electromagnetic . | . . . . . . . . . . . . . Robot Hit Streak 27 | . 7 10 5 10 27 9 13 11 15 26 11 18 Robot Miss Streak 6 | . 1 3 6 1 6 5 3 3 3 1 2 3 Penetration Max 2 | . . . . . 1 2 2 2 2 1 1 1 Secondary Targets 15 | . . . . . . 1 1 4 . 2 . 7 Max Gunslinging Chain 1 | . . . . . . 1 1 1 . 1 . 1 Shots Hit Robots 663 | . 19 10 102 12 89 16 106 97 73 44 20 75 Core Hits 507 | . 74 8 84 18 29 12 66 75 39 39 12 51 Critical Kills 151 | . . . . . 6 6 34 35 17 23 5 25 Critical Parts Destroyed 144 | . . . . . 8 8 35 31 24 11 7 20 Critical Strikes 312 | . . . 6 . 17 16 70 68 41 34 12 48 Destroy 306 | . . . . . 17 16 70 68 41 34 12 48 Sever 6 | . . . 6 . . . . . . . . . Melee Attacks 171 | . . 5 165 1 . . . . . . . . Impact . | . . . . . . . . . . . . . Slashing 171 | . . 5 165 1 . . . . . . . . Piercing . | . . . . . . . . . . . . . Sneak Attacks 13 | . . 2 10 1 . . . . . . . . Combat Hostiles 3 | . . . 3 . . . . . . . . . Follow-up Attacks . | . . . . . . . . . . . . . Damage Inflicted 23872 | . 3194 655 6232 1287 1574 458 2351 2847 1591 1235 519 1929 Guns 12262 | . . . . . 1574 458 2252 2847 1506 1235 461 1929 Cannons . | . . . . . . . . . . . . . Explosions 7723 | . 3194 494 2573 1220 . . 99 . 85 . 58 . Melee 3887 | . . 161 3659 67 . . . . . . . . Ramming . | . . . . . . . . . . . . . Kinetic 12262 | . . . . . 1574 458 2252 2847 1506 1235 461 1929 Thermal 99 | . . . . . . . 99 . . . . . Explosive 7546 | . 3194 494 2573 1220 . . . . 7 . 58 . Electromagnetic 78 | . . . . . . . . . 78 . . . Impact . | . . . . . . . . . . . . . Slashing 3887 | . . 161 3659 67 . . . . . . . . Piercing . | . . . . . . . . . . . . . Highest Corruption 3 | . . . . . . . . . . 1 1 3 Average Corruption 1 | . . . . . . . . . . 1 1 2 Corruption Purged . | . . . . . . . . . . . . . Corruption Blocked . | . . . . . . . . . . . . . Effects 11 | . . . . . . . . . . . 2 9 Message Errors 1 | . . . . . . . . . . . . 1 Matter Fused 4 | . . . . . . . . . . . . 4 Parts Rejected 1 | . . . . . . . . . . . . 1 Data Loss (minor) 2 | . . . . . . . . . . . 1 1 Weapon Failures 3 | . . . . . . . . . . . 1 2 Overload Shots . | . . . . . . . . . . . . . Overflow Damage 418 | . 137 27 244 10 . . . . . . . . Projectiles . | . . . . . . . . . . . . . Explosions 264 | . 137 . 117 10 . . . . . . . . Melee 154 | . . 27 127 . . . . . . . . . Knockbacks . | . . . . . . . . . . . . . Impact . | . . . . . . . . . . . . . Kinetic . | . . . . . . . . . . . . . Secondary . | . . . . . . . . . . . . . Self-Inflicted Damage 338 | . 98 . 170 23 . . . . . . 47 . Shots 14 | . 5 . 7 1 . . . . . . 1 . Rammed . | . . . . . . . . . . . . . Targets Rammed . | . . . . . . . . . . . . . Kicked . | . . . . . . . . . . . . . Crushed . | . . . . . . . . . . . . . Highest Temperature 310 | . 6 6 114 20 310 73 29 24 20 15 2 21 Average Temperature 27 | . 3 6 14 5 103 36 5 7 4 3 1 5 Received Heat Transfer 1631 | . 108 39 495 12 . 98 171 156 153 90 36 273 Effects 3 | . . . . . 3 . . . . . . . Interference 3 | . . . . . 3 . . . . . . . Siege Activations . | . . . . . . . . . . . . . Robots Corrupted . | . . . . . . . . . . . . . Combat Hostiles . | . . . . . . . . . . . . . Parts Fried 1 | . . . . . . . . . 1 . . . Impact Corruptions . | . . . . . . . . . . . . . Robots Melted . | . . . . . . . . . . . . . Combat Hostiles . | . . . . . . . . . . . . . Parts Melted 3 | . . . . . . 1 . 2 . . . . Heat Transferred 50 | . . . . . . . 50 . . . . . Parts Sabotaged . | . . . . . . . . . . . . . Parts Stolen . | . . . . . . . . . . . . . Parts Stripped . | . . . . . . . . . . . . . Power Chain Reactions . | . . . . . . . . . . . . . Missiles Intercepted . | . . . . . . . . . . . . . Alert | -11 -10 -10 -9 -9 -9 -8 -8 -8 -8 -8 -8 -8 ------- Run | Jun Mat Min Mat Min Exi Min Mat Gar Mat Gar Mat Gar Peak Influence 2659 | . 1404 837 2659 1489 . 286 1201 2360 1372 1888 920 1861 Initial 1150 | . . 540 258 1036 . . 111 716 1150 891 920 557 Average 1204 | . 759 721 1610 1356 . 132 628 1617 1025 1380 725 1318 Maximum Alert Level 5 | . 4 3 5 4 . 1 4 5 4 5 3 5 Low Security (%) 4 | 100 18 . . . . 74 6 . . . . . Level 1 4 | . 9 . 4 . . 25 21 . . . . . Level 2 11 | . 13 45 3 . . . 37 . 8 . 39 5 Level 3 23 | . 29 54 10 4 . . 24 19 50 25 60 23 Level 4 30 | . 29 . 28 95 . . 9 31 41 47 . 40 Level 5 25 | . . . 54 . . . . 48 . 27 . 30 High Security . | . . . . . . . . . . . . . Max Security . | . . . . . . . . . . . . . Sterilizations 1 | . . . 1 . . . . . . . . . Squads Dispatched 35 | . 8 1 13 1 . 1 7 . 3 . 1 . Investigation 24 | . 7 1 10 1 . . 4 . 1 . . . Extermination . | . . . . . . . . . . . . . Reinforcement 7 | . 1 . 1 . . 1 1 . 2 . 1 . Assault 3 | . . . 2 . . . 1 . . . . . Garrison 1 | . . . . . . . 1 . . . . . Intercept . | . . . . . . . . . . . . . Searches Triggered . | . . . . . . . . . . . . . Construction Impeded 2 | . . . 1 . . 1 . . . . . . Haulers Reinforced . | . . . . . . . . . . . . . Active Scanning Responses . | . . . . . . . . . . . . . Cargo Convoy Interrupts . | . . . . . . . . . . . . . Stealth | -11 -10 -10 -9 -9 -9 -8 -8 -8 -8 -8 -8 -8 --------- Run | Jun Mat Min Mat Min Exi Min Mat Gar Mat Gar Mat Gar Distress Signals 9 | . . . 2 . . . 4 . 3 . . . Communications Jammed . | . . . . . . . . . . . . . Distress Signals . | . . . . . . . . . . . . . Times Spotted 283 | . 26 8 58 8 14 14 47 37 19 17 5 30 Peak Tracking Total 10 | . 3 3 7 3 10 6 6 5 4 3 2 5 Tactical Retreats 20 | . . . 4 . 2 4 3 4 2 . . 1 Traps | -11 -10 -10 -9 -9 -9 -8 -8 -8 -8 -8 -8 -8 ------- Run | Jun Mat Min Mat Min Exi Min Mat Gar Mat Gar Mat Gar Traps Triggered 15 | . 1 . 1 . . . . 7 . 5 . 1 Indirectly . | . . . . . . . . . . . . . Trap Hack Attempts . | . . . . . . . . . . . . . Triggered . | . . . . . . . . . . . . . Disarmed . | . . . . . . . . . . . . . Reprogrammed 6 | . . . 6 . . . . . . . . . Reused 4 | . . . 4 . . . . . . . . . Traps Extracted . | . . . . . . . . . . . . . Installed . | . . . . . . . . . . . . . Triggered 6 | . . . 4 2 . . . . . . . . Exploded 3 | . . . . . 3 . . . . . . . Machines | -11 -10 -10 -9 -9 -9 -8 -8 -8 -8 -8 -8 -8 ---------- Run | Jun Mat Min Mat Min Exi Min Mat Gar Mat Gar Mat Gar Machines Disabled 181 | . 28 5 52 2 11 . 24 17 13 9 5 15 Max in Single Turn 3 | . 3 2 3 1 2 . 2 1 2 1 2 2 Garrison Relay 17 | . . . . . . . . 6 . 5 . 6 Machines Repaired 2 | . . . 2 . . . . . . . . . Machines Sabotaged . | . . . . . . . . . . . . . Overloaded Fab Kills . | . . . . . . . . . . . . . Hacking | -11 -10 -10 -9 -9 -9 -8 -8 -8 -8 -8 -8 -8 --------- Run | Jun Mat Min Mat Min Exi Min Mat Gar Mat Gar Mat Gar Machines Accessed 50 | . 9 3 13 . . . 10 2 3 4 2 4 Terminals 39 | . 7 1 11 . . . 7 2 2 4 1 4 Fabricators . | . . . . . . . . . . . . . Repair Stations . | . . . . . . . . . . . . . Recycling Units 4 | . 2 . 2 . . . . . . . . . Scanalyzers 2 | . . . . . . . 2 . . . . . Garrison Access 3 | . . . . . . . 1 . 1 . 1 . Total Hacks 206 | . 37 4 46 . . . 49 6 20 10 10 24 Successful 129 | . 24 3 33 . . . 36 4 13 6 3 7 Failed 76 | . 12 1 13 . . . 13 2 7 4 7 17 Catastrophic 9 | . . . 3 . . . 1 2 . . 2 1 Database Lockouts 1 | . 1 . . . . . . . . . . . Manual 130 | . 24 2 29 . 1 . 26 4 13 5 9 17 Terminals 187 | . 30 2 43 . . . 44 6 19 10 9 24 Fabricators . | . . . . . . . . . . . . . Repair Stations . | . . . . . . . . . . . . . Recycling Units 10 | . 7 . 3 . . . . . . . . . Scanalyzers 3 | . . . . . . . 3 . . . . . Garrison Access 4 | . . . . . . . 2 . 1 . 1 . Terminal Hacks 89 | . 15 2 19 . . . 27 3 10 5 2 6 Record 7 | . . . . . . . 7 . . . . . Part Schematic 2 | . . . 1 . . . 1 . . . . . Robot Analysis 18 | . 5 . 6 . . . 7 . . . . . Prototype ID Bank 8 | . 4 . 2 . . . 1 . 1 . . . Open Door 4 | . . 2 . . . . . . . 1 . 1 Branch Access Points 2 | . . . 1 . . . 1 . . . . . Emergency Access Points 6 | . 1 . . . . . 2 1 1 1 . . Machine Index 2 | . 1 . . . . . 1 . . . . . Terminal Index 1 | . . . 1 . . . . . . . . . Scanalyzer Index 2 | . 1 . 1 . . . . . . . . . Alert Level 2 | . . . . . . . 1 . 1 . . . Unreport Threat 12 | . . . 3 . . . 3 . 4 . 2 . Locate Traps 7 | . . . 2 . . . . 1 . 1 . 3 Reprogram Traps 2 | . . . 1 . . . . . 1 . . . Security Status 1 | . . . . . . . 1 . . . . . Hauler Manifests 1 | . . . . . . . . . 1 . . . Registered Prototypes 1 | . . . . . . . . . 1 . . . Zone Layout 6 | . 3 . 1 . . . 2 . . . . . Garrison Registry 3 | . . . . . . . . 1 . 1 . 1 Patrol Navigation 2 | . . . . . . . . . . 1 . 1 Fabricator Hacks . | . . . . . . . . . . . . . Repair Station Hacks . | . . . . . . . . . . . . . Recycling Unit Hacks 2 | . 1 . 1 . . . . . . . . . Report Inventory 2 | . 1 . 1 . . . . . . . . . Scanalyzer 2 | . . . . . . . 2 . . . . . Insert Component 1 | . . . . . . . 1 . . . . . Analyze 1 | . . . . . . . 1 . . . . . Garrison Access Hacks 4 | . . . . . . . 2 . 1 . 1 . Unlock Access 3 | . . . . . . . 1 . 1 . 1 . Coupler Status 1 | . . . . . . . 1 . . . . . Unauthorized Hacks 32 | . 8 1 13 . . . 5 1 2 1 . 1 Terminals 25 | . 4 1 11 . . . 4 1 2 1 . 1 Botnet 12 | . 3 . 4 . . . 3 . 1 . . 1 Sabotage 3 | . . . 2 . . . . . 1 . . . Search 8 | . 1 1 5 . . . 1 . . . . . Override 2 | . . . . . . . . 1 . 1 . . Fabricators . | . . . . . . . . . . . . . Repair Stations . | . . . . . . . . . . . . . Recycling Units 6 | . 4 . 2 . . . . . . . . . Reject 1 | . 1 . . . . . . . . . . . Mask 1 | . 1 . . . . . . . . . . . Tunnel 4 | . 2 . 2 . . . . . . . . . Scanalyzers 1 | . . . . . . . 1 . . . . . Extract 1 | . . . . . . . 1 . . . . . Garrison Access . | . . . . . . . . . . . . . Data Cores Recovered 5 | . 1 . 2 . . . 2 . . . . . Used 4 | . 1 . 2 . . . 1 . . . . . Hacking Detections 31 | . 8 1 9 . . . 6 1 1 1 1 3 Full Trace Events 10 | . 4 . 2 . . . 3 . . . . 1 Feedback Events . | . . . . . . . . . . . . . Feedback Blocked . | . . . . . . . . . . . . . Robot Schematics Acquired . | . . . . . . . . . . . . . Robots Built . | . . . . . . . . . . . . . Authchips . | . . . . . . . . . . . . . Time . | . . . . . . . . . . . . . Total Robot Build Rating . | . . . . . . . . . . . . . Part Schematics Acquired 5 | . . . 1 . . . 4 . . . . . Parts Built . | . . . . . . . . . . . . . Authchips . | . . . . . . . . . . . . . Time . | . . . . . . . . . . . . . Total Part Build Rating . | . . . . . . . . . . . . . Parts Repaired . | . . . . . . . . . . . . . Time . | . . . . . . . . . . . . . Parts Recycled . | . . . . . . . . . . . . . Recycled Matter . | . . . . . . . . . . . . . Retrieved Matter . | . . . . . . . . . . . . . Retrieved Components . | . . . . . . . . . . . . . Parts Scanalyzed 1 | . . . . . . . 1 . . . . . Part Schematics Acquired 1 | . . . . . . . 1 . . . . . Parts Damaged . | . . . . . . . . . . . . . Bothacking | -11 -10 -10 -9 -9 -9 -8 -8 -8 -8 -8 -8 -8 ------------ Run | Jun Mat Min Mat Min Exi Min Mat Gar Mat Gar Mat Gar Used RIF Installer . | . . . . . . . . . . . . . Robots Hacked . | . . . . . . . . . . . . . Non-combat . | . . . . . . . . . . . . . Combat . | . . . . . . . . . . . . . Robot Hacks Applied . | . . . . . . . . . . . . . Relay Couplers Released 29 | . . . . . . . . 10 . 9 . 10 Machine Destruction 29 | . . . . . . . . 10 . 9 . 10 Fabnet Peak Effective % . | . . . . . . . . . . . . . Robots Rewired 8 | . . . . . . . . 6 . . . 2 Allies Hacked . | . . . . . . . . . . . . . Hacks Repelled 1 | . . . . . . . . 1 . . . . Allies | -11 -10 -10 -9 -9 -9 -8 -8 -8 -8 -8 -8 -8 -------- Run | Jun Mat Min Mat Min Exi Min Mat Gar Mat Gar Mat Gar Total Allies 15 | . . 4 . 2 . . . 6 . 1 . 2 Largest Group 4 | . . 4 4 2 2 . . 2 . 1 . 2 Highest-Rated Group 71 | . . 71 71 45 45 . . 32 . 31 . 70 Highest-Rated Ally 39 | . . 31 31 31 31 . . 16 . 31 . 39 Total Orders . | . . . . . . . . . . . . . Ally Attacks 32 | . . 5 20 . . . . 2 . 5 . . Total Damage 345 | . . 47 134 . . . . 43 . 121 . . Kills 7 | . . 2 5 . . . . . . . . . Allies Corrupted . | . . . . . . . . . . . . . Allies Melted . | . . . . . . . . . . . . . Intel | -11 -10 -10 -9 -9 -9 -8 -8 -8 -8 -8 -8 -8 ------- Run | Jun Mat Min Mat Min Exi Min Mat Gar Mat Gar Mat Gar Robot Analysis Total 18 | . 5 . 6 . . . 7 . . . . . Derelict Logs Recovered 4 | . . 2 . 2 . . . . . . . . Drone Launches . | . . . . . . . . . . . . . Drone Recoveries . | . . . . . . . . . . . . . Exploration | -11 -10 -10 -9 -9 -9 -8 -8 -8 -8 -8 -8 -8 ------------- Run | Jun Mat Min Mat Min Exi Min Mat Gar Mat Gar Mat Gar Turns Passed 8713 | 4 982 662 1867 345 869 181 732 1157 373 794 114 633 Spaces Moved 8825 | 2 1137 589 1950 582 894 209 698 967 288 757 98 654 Core . | . . . . . . . . . . . . . Treads . | . . . . . . . . . . . . . Legs 40 | 1 . 39 . . . . . . . . . . Wheels 154 | 1 153 . . . . . . . . . . . Hover . | . . . . . . . . . . . . . Flight 8631 | . 984 550 1950 582 894 209 698 967 288 757 98 654 Fastest Speed 28 | 100 40 40 31 31 31 31 31 31 28 28 28 28 Average Speed 38 | 110 48 79 33 31 53 32 31 31 30 28 28 28 Slowest Speed 120 | 120 100 120 117 31 101 101 31 31 34 28 28 28 Overloaded Moves . | . . . . . . . . . . . . . Propulsion Burnouts . | . . . . . . . . . . . . . Robots Hopped 11 | . 3 . . 4 . 2 . 1 1 . . . Cave-ins Triggered . | . . . . . . . . . . . . . Exploration Rate (%) 68 | 2 98 96 97 97 90 43 71 92 36 89 11 71 Regions Visited 12 Branch Regions 4 Pre-discovered Areas 6 | . 2 1 2 1 . . . . . . . . Known Exits Taken 8 | . 1 1 1 1 . 1 1 . 1 . 1 . Unknown Exits Taken 2 | 1 . . . . 1 . . . . . . . Scrap Searched 4 | . . 2 . 1 . 1 . . . . . . Spaces Dug 115 | . . . 27 . . . 13 18 31 14 8 4 Terrain Destroyed 1815 | . 521 91 615 146 3 8 140 54 135 33 31 38 Melee 8 | . . . 8 . . . . . . . . . Projectile 191 | . . . . . 1 8 61 34 28 23 7 29 AOE 1562 | . 521 91 607 146 2 . 69 . 103 . 23 . Terrain Rammed . | . . . . . . . . . . . . . Walls Destroyed . | . . . . . . . . . . . . . Machines Disabled . | . . . . . . . . . . . . . Actions | -11 -10 -10 -9 -9 -9 -8 -8 -8 -8 -8 -8 -8 --------- Run | Jun Mat Min Mat Min Exi Min Mat Gar Mat Gar Mat Gar Total 12427 | 3 1488 761 2852 721 1210 294 967 1486 438 1168 146 893 Wait 1925 | . 230 126 551 121 179 63 87 206 50 222 21 69 Move 8794 | 1 1130 588 1949 573 893 204 698 964 286 756 98 654 Hop 11 | . 3 . . 4 . 2 . 1 1 . . . Pick Up 21 | . 5 2 5 . 6 . 2 1 . . . . Fast Attach 75 | 1 10 8 16 . 23 3 7 2 3 . 1 1 Attach 6 | . 1 . 3 . 1 . . 1 . . . . Detach 17 | . 1 3 3 . 9 . 1 . . . . . Swap 14 | . . 2 7 1 2 . 1 1 . . . . Drop 66 | 1 8 5 15 . 23 3 7 2 2 . . . Fire 828 | . 80 14 67 18 62 13 123 174 67 85 19 106 Melee 171 | . . 5 165 1 . . . . . . . . Ram . | . . . . . . . . . . . . . Kick . | . . . . . . . . . . . . . Crush . | . . . . . . . . . . . . . Escape Stasis 173 | . . . . . . . . 84 . 74 . 15 Rewire 42 | . . . . . . . . 20 . . . 22 Trap . | . . . . . . . . . . . . . Miscellaneous 284 | . 20 8 71 3 12 6 41 30 29 31 7 26 Route ------- -11/Junkyard -10/Materials (discovered 4 exits: *Mat x3 / *Min) -10/Mines (discovered 2 exits: *Mat x2) -9/Materials (discovered 4 exits: *Mat x3 / *Min) -9/Mines (discovered 3 exits: *Mat x2 / *Exi) -9/Exiles -8/Mines -8/Materials (discovered 4 exits: *Fac x2 / *Sto / Gar) -8/Garrison (discovered 3 exits: *Mat x3) -8/Materials (discovered 3 exits: *Fac / *Sto / Gar) -8/Garrison (discovered 3 exits: *Mat x3) -8/Materials -8/Garrison (discovered 3 exits: *Fac x3) History --------- Turn | Location | Event 1 | -11/Junkyard | Discovered new exit (range 1) 5 | -11/Junkyard | Upgraded with Utility slot (x3) 5 | -11/Junkyard | Entered Materials 233 | -10/Materials | Discovered new exit (range 15) 297 | -10/Materials | Reached level 2 299 | -10/Materials | Upgraded with Propulsion slot (x1) 314 | -10/Materials | Build established: Mutant 321 | -10/Materials | Discovered new exit (range 9) 444 | -10/Materials | Reached level 3 452 | -10/Materials | Discovered new exit (range 16) 455 | -10/Materials | Central database locked down 571 | -10/Materials | Upgraded with Utility slot (x1) 730 | -10/Materials | Reached level 4 750 | -10/Materials | Discovered new exit (range 11) 789 | -10/Materials | Upgraded with Utility slot (x1) 846 | -10/Materials | Identified exit to Materials 903 | -10/Materials | Identified exit to Mines 987 | -10/Materials | Entered Mines 989 | -10/Mines | Reached level 5 995 | -10/Mines | Met a Derelict bent on vengeance 1018 | -10/Mines | Discovered exit to Materials (range 13) 1075 | -10/Mines | Upgraded with Weapon slot (x1) 1082 | -10/Mines | Learned Materials emergency access door positions 1088 | -10/Mines | Assisted by bots powering up and referring to "LRC-V3" 1101 | -10/Mines | Met a Derelict who couldn't figure out how to use a Trap Extractor 1205 | -10/Mines | Found the Drone Emporium 1208 | -10/Mines | Found Prototype Device 1259 | -10/Mines | Discovered exit to Materials (range 17) 1526 | -10/Mines | Build established: Assassin 1532 | -10/Mines | Received a Mining Laser from a helpful Derelict 1649 | -10/Mines | Entered Materials 1649 | -9/Materials | Accompanied by 4 allies 1651 | -9/Materials | Reached level 6 1688 | -9/Materials | Reached level 7 1690 | -9/Materials | Upgraded with Propulsion slot (x1) 1720 | -9/Materials | Upgraded with Utility slot (x1) 1793 | -9/Materials | Reached level 8 1798 | -9/Materials | Upgraded with Propulsion slot (x1) 1889 | -9/Materials | Discovered new exit (range 3) 1996 | -9/Materials | Build established: Scout 2002 | -9/Materials | Core integrity fell below 50% 2068 | -9/Materials | Reached level 9 2102 | -9/Materials | Destroyed 12 combat bots 2138 | -9/Materials | Discovered new exit (range 15) 2243 | -9/Materials | Identified exit to Mines 2304 | -9/Materials | Discovered new exit (range 16) 2449 | -9/Materials | First assault squad dispatched 2457 | -9/Materials | Reached level 10 2918 | -9/Materials | Build established: Hacker-Scout 3181 | -9/Materials | Sterilization system engaged 3181 | -9/Materials | Non-combat units ordered to evacuate 3198 | -9/Materials | Reached level 11 3281 | -9/Materials | Combat units ordered to evacuate 3353 | -9/Materials | Upgraded with Utility slot (x1) 3481 | -9/Materials | Ambient heat levels rising (+10) 3516 | -9/Materials | Entered Mines 3525 | -9/Mines | Discovered new exit (range 16) 3562 | -9/Mines | Met a Derelict shopkeep closing up shop 3610 | -9/Mines | Learned location of 1 exit from Materials 3642 | -9/Mines | Discovered new exit (range 9) 3644 | -9/Mines | Identified exit to Materials 3645 | -9/Mines | Learned location of Storage (-8) 3679 | -9/Mines | Discovered exit to Materials (range 12) 3690 | -9/Mines | Learned Materials emergency access door positions 3743 | -9/Mines | Received a Rocket Launcher from a helpful Derelict 3755 | -9/Mines | Build established: Hacker-Sprinter 3821 | -9/Mines | Deemed a non-threat by the Exiles lab entrance 3822 | -9/Mines | Identified exit to Exiles 3861 | -9/Mines | Entered Exiles 3861 | -9/Exiles | Accompanied by 2 allies 3870 | -9/Exiles | Met 8R-AWN 3875 | -9/Exiles | Met EX-HEX 3887 | -9/Exiles | Met EX-DEC 3891 | -9/Exiles | Led the pair of lost Derelicts to a safe place 3949 | -9/Exiles | Met EX-BIN 3952 | -9/Exiles | Aligned with FarCom system 3953 | -9/Exiles | Given EX-Vault access code 3960 | -9/Exiles | Opened EX-Vault 3965 | -9/Exiles | Warned to stay clear of 0b10 Research branches 3983 | -9/Exiles | Attacked by the Exiles 4144 | -9/Exiles | Core integrity fell below 20% 4152 | -9/Exiles | Destroyed 8R-AWN 4157 | -9/Exiles | Found Prototype Device 4157 | -9/Exiles | Identified AS-neutralizer No. 17b 4163 | -9/Exiles | Found Prototype Ballistic Gun 4163 | -9/Exiles | Identified 8R-AWN's Boregun 4165 | -9/Exiles | Found 8R-AWN's Boregun 4202 | -9/Exiles | Found Prototype Processor 4202 | -9/Exiles | Identified Exp. Targeting Computer 4204 | -9/Exiles | Identified Sensor Drone Bay 4210 | -9/Exiles | Found Prototype Protection 4210 | -9/Exiles | Identified 8R-AWN's Armor/EX 4363 | -9/Exiles | Destroyed EX-HEX 4365 | -9/Exiles | Destroyed EX-BIN 4418 | -9/Exiles | Destroyed EX-DEC 4437 | -9/Exiles | Found Prototype Processor 4437 | -9/Exiles | Identified Exp. Core Analyzer 4520 | -9/Exiles | Build established: Scavenger-Mutant 4667 | -9/Exiles | Found Prototype Processor 4667 | -9/Exiles | Identified Modified TNC 4714 | -9/Exiles | Discovered new exit (range 15) 4730 | -9/Exiles | Left Exiles lab with Modified TNC 4730 | -9/Exiles | Entered Mines 4801 | -8/Mines | Discovered exit to Materials (range 15) 4851 | -8/Mines | AD-0RF came to Exiles' defense 4861 | -8/Mines | Destroyed AD-0RF 4867 | -8/Mines | Reached level 12 4895 | -8/Mines | Found Exp. Targeting Computer 4911 | -8/Mines | Entered Materials 4912 | -8/Materials | Identified exit to Factory 4962 | -8/Materials | Build established: Scavenger-Sprinter 5118 | -8/Materials | Reached level 13 5160 | -8/Materials | Discovered new exit (range 12) 5232 | -8/Materials | Identified exit to Storage 5311 | -8/Materials | First assault squad dispatched 5438 | -8/Materials | Discovered exit to Factory (range 5) 5502 | -8/Materials | Destroyed 10 combat bots 5515 | -8/Materials | Build established: Wizard-Sprinter 5528 | -8/Materials | Reached level 14 5579 | -8/Materials | Garrison activated, responded to threat 5631 | -8/Materials | Identified exit to Garrison 5643 | -8/Materials | Entered Garrison 5653 | -8/Garrison | Triggered checkpoint 5676 | -8/Garrison | Triggered checkpoint 5768 | -8/Garrison | Triggered checkpoint 5848 | -8/Garrison | Triggered checkpoint 5852 | -8/Garrison | Triggered checkpoint 5899 | -8/Garrison | Triggered checkpoint 5935 | -8/Garrison | Destroyed 9 combat bots 5964 | -8/Garrison | Identified exit to Materials 5964 | -8/Garrison | Triggered checkpoint 6066 | -8/Garrison | Triggered checkpoint 6316 | -8/Garrison | Core integrity fell below 50% 6317 | -8/Garrison | Reached level 15 6319 | -8/Garrison | Spotted B-75 Beast 6352 | -8/Garrison | Destroyed B-75 Beast 6486 | -8/Garrison | Triggered checkpoint 6523 | -8/Garrison | Garrison Relay disabled 6528 | -8/Garrison | Garrison Relay disabled 6705 | -8/Garrison | Discovered exit to Materials (range 17) 6705 | -8/Garrison | Discovered exit to Materials (range 47) 6705 | -8/Garrison | Discovered exit to Materials (range 56) 6800 | -8/Garrison | Entered Materials 6800 | -8/Materials | Discovered exit to Storage (range 6) 7171 | -8/Materials | Discovered exit to Factory (range 5) 7173 | -8/Materials | Identified exit to Garrison 7173 | -8/Materials | Entered Garrison 7187 | -8/Garrison | Triggered checkpoint 7220 | -8/Garrison | Triggered checkpoint 7256 | -8/Garrison | Triggered checkpoint 7258 | -8/Garrison | Destroyed 7 combat bots 7264 | -8/Garrison | Discovered new exit (range 16) 7275 | -8/Garrison | Triggered checkpoint 7476 | -8/Garrison | Triggered checkpoint 7484 | -8/Garrison | Triggered checkpoint 7527 | -8/Garrison | Identified exit to Materials 7669 | -8/Garrison | Discovered exit to Materials (range 75) 7669 | -8/Garrison | Discovered exit to Materials (range 51) 7669 | -8/Garrison | Discovered exit to Materials (range 6) 7676 | -8/Garrison | Triggered checkpoint 7698 | -8/Garrison | Rescued a captive Derelict 7702 | -8/Garrison | Rescued a captive Derelict 7855 | -8/Garrison | Triggered checkpoint 7861 | -8/Garrison | Reached level 16 7945 | -8/Garrison | Garrison Relay disabled 7965 | -8/Garrison | Upgraded with Utility slot (x1) 7967 | -8/Garrison | Entered Materials 8081 | -8/Materials | Identified exit to Garrison 8081 | -8/Materials | Entered Garrison 8108 | -8/Garrison | Triggered checkpoint 8218 | -8/Garrison | Triggered checkpoint 8251 | -8/Garrison | Destroyed 12 combat bots 8254 | -8/Garrison | Discovered exit to Factory (range 12) 8254 | -8/Garrison | Discovered exit to Factory (range 45) 8254 | -8/Garrison | Discovered exit to Factory (range 49) 8266 | -8/Garrison | Triggered checkpoint 8278 | -8/Garrison | Garrison Relay disabled 8308 | -8/Garrison | Triggered checkpoint 8384 | -8/Garrison | Triggered checkpoint 8464 | -8/Garrison | Garrison Relay disabled 8531 | -8/Garrison | Triggered checkpoint 8560 | -8/Garrison | Garrison Relay disabled 8687 | -8/Garrison | Spotted B-75 Beast 8703 | -8/Garrison | Core integrity fell below 20% 8714 | -8/Garrison | Destroyed by B-75 Beast with Heavy Machine Gun Last Messages --------------- 08694_ HV Slug penetrates B-75 Beast. 08697_ HV Slug penetrates Wall. 08697_ HV Slug penetrates B-75 Beast. 08697_ HV Slug penetrates Wall. 08700_ HV Slug penetrates B-75 Beast. 08700_ HV Slug penetrates Wall. 08702_ System corrupted: Imp. Flight Unit rejected. 08703_ HV Slug penetrates Wall. 08703_ HV Slug penetrates B-75 Beast. 08703_ HV Slug penetrates Wall. 08704_ Wall collapses. 08706_ HV Slug penetrates B-75 Beast. 08709_ B-75 Beast suffers critical hit (Destroy). 08709_ Destroyed Magnetic Acceleration Cannon. 08712_ Acquired Imp. Flight Unit. 08713_ HV Slug penetrates B-75 Beast. 08713_ B-75 Beast suffers critical hit (Destroy). 08713_ Destroyed Rnf. Deuterium Engine. 08713_ HV Slug penetrates B-75 Beast. 08713_ HV Slug penetrates Wall. Map ----- +----------------------------------------------------+ | | | | | | | ?????????????????????????????????????????????????? | | ?????????????????????????????????????????????????? | | ?????????????????????????????????????????????????? | | ?????????????????????????????????????????????????? | | ?????????????????????????????????????????????????? | | ?????????????????????????????????????????????????? | | ?????????????????????????????????????????????????? | | ?????????????????????????????????????????????????? | | ?????????????????????????????????????????????????? | | ?????????????????????????????????????????????????? | | ?????????????????????????????????????????????????? | | ?????????????????????????????????????????????????? | | ?????????????????????????????????????????????????? | | ?????????????????????????????????????????????????? | | ?????????????????????????????????????????????????? | | ???????????????????????????????????############??? | | ???????????????????????????????????#""""""""""#??? | | ?????????????????????????????????###"[=!!=]"""#??? | | ?????????????????????????#####???# ""#??? | | ##???????????????????????# #???# ^#### !"#??? | | "#???????????????######### % #####% # !"#??? | | "#???????????????# % ; !%[=[ ; ^ ="#??? | | "#???????????????# @ ; ![!%% #### ["#??? | | "#???????????????# %#############;*[ BB ""#??? | | "#???????????????# #????????????###"!!/!!!"""#??? | | "#???????????????# #??????????????#""""""""""#??? | | "#???????????????# #??????????????############??? | | "#???????????????# #??#######???????????????????? | | "#???????????????# #??#""" "#???????????????????? | | "#???????????????# ##### !!###??????????????????? | | ##???????????????# + + # ?############### | | ?????????????????# ## ###### #????# # | | ?????????????????# ## #????# #????# # | | ??????############ ## #????# # ???# " """"" # | | ??????# ^^## #????# ###??# ### ####" # | | ??????# ^## ###### #?###+#"" """#" # | | ??????# ###+##### ^## + #?# "" "" # | | ??????# #?# #???#^ #########= #?# "" [ "" # | | ??????# ### ##### =#########%##### %| " # | | ??????# + " ! = * =%%%% %! # | | ####### ##### ### [############### ""! !"" # | | # *## #???# #?# #?????????????###+#""" ""#" # | | # ==%## ##??#%#?# #??????????????# #### ###" # | | %%= = ####+### #??????????????# """ """" # | | =[%=% *= #??????????????# # | | = [ !/ #??????????????# # | | # ## ###########??????????????############### | +----------------------------------------------------+ Best States ------------- Heat Dissipation 57 Energy Generation 23 Energy Capacity 200 Matter Stores 300 Matter Capacity 300 Sight Range 21 Robot Scan Range 19 Terrain Scan Range 16 Terrain Scan Density 210 ECM Strength 1 Additional Mass Support 12 Armor Coverage 900 Resistance: EX 90 Weapon Cycling 25 Evasion (%) 71 Targeting Accuracy 24 Core Analysis 8 Armor Integrity Analysis 40 Salvage Targeting 4 Offensive Hacking 36 Defensive Hacking 35 Item Schematics ----------------- Arm. Wheel | -9/Materials | Hacked Adv. Weapon Cycler | -8/Materials | Scanalyzed Katana | -8/Materials | Extracted Adv. Targeting Computer | -8/Materials | Extracted Powered Armor | -8/Materials | Hacked Robot Schematics ------------------ None Fabricated ------------ Nothing Alien Tech Used ----------------- None Achievements -------------- None Challenges ------------ None RPGLIKE | -11 -10 -10 -9 -9 -9 -8 -8 -8 -8 -8 -8 -8 --------- Run | Jun Mat Min Mat Min Exi Min Mat Gar Mat Gar Mat Gar Levels Raised 15 | . 3 1 6 . . 1 2 1 . 1 . . XP Earned 26339 | 3000 5858 1369 8080 497 80 780 3126 1606 445 738 91 669 XP Spent 24315 | 2650 4800 1000 8815 . 650 1500 2300 . . 2600 . . Upgrades 37 | 4 8 2 14 . 2 3 3 . . 1 . . Propulsion Slot 3 | . 1 . 2 . . . . . . . . . Utility Slot 8 | 3 2 . 2 . . . . . . 1 . . Weapon Slot 1 | . . 1 . . . . . . . . . . Heat Dissipation 1 | . . . . . 1 . . . . . . . Mass Support 2 | . 1 . . . . 1 . . . . . . Inventory Capacity 4 | 1 . 1 1 . . . 1 . . . . . Sight Range 1 | . 1 . . . . . . . . . . . Sensor Range 2 | . . . 2 . . . . . . . . . Terrain Scan Density 2 | . . . 2 . . . . . . . . . Ranged Accuracy 4 | . . . . . . 2 2 . . . . . Melee Accuracy 5 | . . . 4 . 1 . . . . . . . Hack Attack % 1 | . 1 . . . . . . . . . . . Hack Defense % 1 | . . . 1 . . . . . . . . . EX Damage % 2 | . 2 . . . . . . . . . . . Protomatter Created 3790 | . 358 70 550 154 92 41 427 357 303 747 98 593 Integrity Restored 5523 | . 289 142 1478 51 276 123 825 595 615 554 126 449 Core 4578 | . 252 95 1268 42 276 123 586 502 590 356 98 390 Parts 945 | . 37 47 210 9 . . 239 93 25 198 28 59 Protomatter Decayed 1796 | . 153 88 113 39 24 45 149 181 96 469 . 439 Game ------ Seed DispersionActivePlating Manual? 1 Play Time 02:13:54 Cumulative 506.6 hours Start 2023.03.23 @ 23:07:56 End 2023.03.24 @ 05:41:58 Sessions 3 Manual Loads 0 Difficulty Rogue Special Mode Winter2019/RPGLIKE Game No. 536 Rogue 536 Adventurer 0 Explorer 0 Win Type - Total 1 Types 1/0/0/0/0/0/0/0/0 Lore% 64 Gallery% 83 Achievement% 65 Wizard Run 0 Options --------- ASCII 0 Keyboard 0 Movement Mouse Keybinds 0 Fullscreen 2 Font 24/Smallcaps Map View 76x50 Tactical HUD 1 Map Filters NONE Filters NONE Steam 1 RUN: 72d217e8-587f-4763-8905-46d9ea883730